fUST/lending_fUST_20240210
["ID","MTS","AMOUNT","RATE_DAILY","PERIOD"]
[313630273,1707498348590,-150.0,0.000275,2]
[313630274,1707498348611,-155.0,0.000277,2]
[313630275,1707498348631,-2836.78490962,0.00027898,2]
[313630276,1707498348652,-2094.656582,0.00027899,2]
[313630277,1707498348673,-563.21509038,0.00027899,2]
[313630278,1707498348696,-21141.89197977,0.000279,2]
[313630279,1707498348717,-7357.8,0.00027988,3]
[313630280,1707498348737,-10595.22,0.0002799,3]
[313630281,1707498348757,-8829.35,0.0002799,3]
[313630282,1707498348779,-296.6607902,0.00027998,2]
[313630283,1707498348800,-154.93802479,0.00028,2]
[313630284,1707498348821,-766.29918568,0.00028,2]
[313630285,1707498348842,-154.93802479,0.00028,2]
[313630286,1707498348862,-741.66958363,0.00028,2]
[313630287,1707498348884,-15695.89406675,0.00028,2]
[313630288,1707498425137,-154.92253873,0.00025196,4]
[313630289,1707498425156,-212.6780741,0.00025197,2]
[313630290,1707498425175,-335.67869431,0.00026599,2]
[313630291,1707498425196,-8679.35978985,0.000266,4]
[313630292,1707498425218,-3055.5,0.0002799,3]
[313630293,1707498425239,-5622.25,0.0002799,3]
[313630294,1707498425259,-155.76493416,0.00027998,2]
[313630295,1707498425278,-563.21509038,0.00027998,2]
[313630296,1707498425298,-4412.33424051,0.00027998,2]
[313630297,1707498425318,-2094.656582,0.00027998,2]
[313630298,1707498425338,-2836.78490962,0.00027998,2]
[313630299,1707498425359,-156.21479853,0.00027999,2]
[313630300,1707498425380,-36254.58218602,0.00028,2]
[313630301,1707498425399,-1716.81726779,0.00028,2]
[313630302,1707498425419,-1897.2990319,0.00028,2]
[313630303,1707498425439,-201.59700193,0.00028,2]
[313630304,1707498425459,-509.66422516,0.00028,2]
[313630305,1707498425480,-741.66958363,0.00028,2]
[313630306,1707498425500,-154.92253873,0.00028,2]
[313630307,1707498425523,-2212.60402565,0.00028,2]
[313630308,1707498425543,-300.0,0.00028,2]
[313630309,1707498425563,-1832.17488523,0.00028,2]
[313630310,1707498425583,-154.92253873,0.00028,2]
[313630311,1707498425605,-766.29918568,0.00028,2]
[313630312,1707498425624,-2091.43243292,0.00028,2]
[313630313,1707498425643,-4851.75494719,0.00028,2]
[313630314,1707498425662,-12118.56838725,0.00028,2]
[313630315,1707498430095,-280.57621177,0.00026598,2]
[313630316,1707498430122,-2313.53921435,0.00028,2]
[313630317,1707498430149,-1409.0,0.00028,2]
[313630318,1707498430172,-269.752913,0.00028422,2]
[313630319,1707498430195,-207.969121,0.00028422,2]
[313630320,1707498430217,-500.0,0.000285,2]
[313630321,1707498430238,-4098.40374068,0.000285,2]
[313630322,1707498430259,-1075.84682668,0.000285,2]
[313630323,1707498430281,-154.93802479,0.00028696,7]
[313630324,1707498430303,-23691.05931734,0.00028698,20]
[313630325,1707498430324,-4074.87511828,0.00028699,2]
[313630326,1707498430346,-7000.0,0.000287,2]
[313630327,1707498430367,-7000.0,0.000287,2]
[313630328,1707498430390,-7037.0,0.000287,2]
[313630329,1707498430412,-155.0,0.00028854,2]
[313630330,1707498430432,-5000.0,0.00028857,2]
[313630331,1707498430452,-11375.01747013,0.000289,2]
[313630332,1707498430475,-226.43569304,0.00028999,2]
[313630333,1707498430497,-183.35515758,0.00029,10]
[313630334,1707498430521,-1000.0,0.00029,29]
[313630335,1707498430543,-1010.0,0.00029,2]
[313630336,1707498430566,-158.08432679,0.00029,2]
[313630337,1707498430587,-155.03466997,0.00029,2]
[313630338,1707498430608,-17963.05097725,0.00029,2]
[313630339,1707498430631,-154.95351395,0.00029,7]
[313630340,1707498430650,-300.0,0.00029,7]
[313630341,1707498430674,-326.46100665,0.00029,7]
[313630342,1707498430696,-522.85446265,0.00029,7]
[313630343,1707498430721,-158.23460937,0.00029,5]
[313630344,1707498430745,-775.20859848,0.00029,7]
[313630345,1707498430768,-302.0,0.00029,2]
[313630346,1707498430794,-1402.0,0.00029,2]
[313630347,1707498430815,-500.0,0.00029,2]
[313630348,1707498430839,-1901.19717966,0.00029,5]
[313630349,1707498430862,-1049.49497979,0.00029,7]
[313630350,1707498430883,-150.0,0.00029,3]
[313630351,1707498430905,-1226.25875719,0.00029,7]
[313630352,1707498430929,-474.41711808,0.00029,7]
[313630353,1707498430949,-500.0,0.00029,2]
[313630354,1707498430973,-284.18771362,0.00029,7]
[313630355,1707498430997,-197.79326171,0.00029,5]
[313630356,1707498431019,-297.81896853,0.00029,7]
[313630357,1707498431043,-301.0,0.00029,14]
[313630358,1707498431062,-4747.5702091,0.000293,2]
[313630359,1707498431084,-185.90096179,0.00029498,2]
[313630360,1707498431105,-4712.29485341,0.000295,30]
[313630361,1707498431129,-391.0,0.0002959,15]
[313630362,1707498431150,-450.0,0.00029853,2]
[313630363,1707498431172,-500.0,0.00029853,2]
[313630364,1707498431310,-500.0,0.00029853,2]
[313630365,1707498431331,-500.0,0.00029853,2]
[313630366,1707498431354,-500.0,0.00029853,2]
[313630367,1707498431376,-500.0,0.00029853,2]
[313630368,1707498431398,-500.0,0.00029853,2]
[313630369,1707498431419,-500.0,0.00029853,2]
[313630370,1707498431441,-195.0851504,0.00029853,2]
[313630371,1707498431462,-500.0,0.00029853,2]
[313630372,1707498431484,-500.0,0.00029853,2]
[313630373,1707498431506,-500.0,0.00029853,2]
[313630374,1707498431526,-163555.14529297,0.00029854,2]
[313630375,1707498442104,-300.0,0.00025197,2]
[313630376,1707498442127,-506.08796964,0.00025579,2]
[313630377,1707498442146,-8679.35978985,0.000266,4]
[313630378,1707498442166,-154.92253873,0.00028,2]
[313630379,1707498442185,-766.29918568,0.00028,2]
[313630380,1707498442204,-1832.17488523,0.00028,2]
[313630381,1707498442224,-4487.45894087,0.0002869,3]
[313630382,1707498444098,-197.74105913,0.0002869,3]
[313630383,1707498444122,-3904.34,0.00029844,3]
[313630384,1707498444142,-212.6780741,0.00029852,2]
[313630385,1707498444162,-335.67869431,0.00029853,2]
[313630386,1707498444184,-69356.88429326,0.00029854,2]
[313630387,1707498444204,-622.51273206,0.00029854,2]
[313630388,1707498444224,-4387.26476714,0.00029954,5]
[313630389,1707498450107,-2212.60402565,0.00025197,2]
[313630390,1707498450133,-2091.43243292,0.00025197,2]
[313630391,1707498450154,-154.92253873,0.00026867,4]
[313630392,1707498450175,-154.92253873,0.00028,2]
[313630393,1707498450197,-741.66958363,0.00029852,2]
[313630394,1707498450217,-280.57621177,0.00029953,2]
[313630395,1707498450238,-1995.57482964,0.00029954,5]
[313630396,1707498450259,-3342.99694483,0.0003,2]
[313630397,1707498450281,-2986.77747873,0.0003,4]
[313630398,1707498450301,-155.07753877,0.0003,4]
[313630399,1707498450321,-349.8322969,0.0003,4]
[313630400,1707498450340,-504.07876722,0.0003,14]
[313630401,1707498450359,-2328.25389883,0.0003,4]
[313630402,1707498450379,-701.78845116,0.0003,2]
[313630403,1707498450398,-500.0,0.0003,15]
[313630404,1707498450416,-5098.0,0.0003,7]
[313630405,1707498450435,-1238.74025828,0.0003,14]
[313630406,1707498450455,-338.54130729,0.0003,2]
[313630407,1707498450475,-985.799551,0.0003,4]
[313630408,1707498450497,-500.0,0.0003,2]
[313630409,1707498450516,-376.10896635,0.0003,10]
[313630410,1707498450536,-11324.07833077,0.0003,7]
[313630411,1707498450560,-7163.57334585,0.0003,7]
[313630412,1707498450580,-1000.0,0.0003,2]
[313630413,1707498450600,-1000.0,0.0003,2]
[313630414,1707498450620,-1000.0,0.0003,2]
[313630415,1707498450640,-1000.0,0.0003,2]
[313630416,1707498450658,-845.62538772,0.0003,2]
[313630417,1707498450678,-2016.762,0.0003,2]
[313630418,1707498450697,-1000.0,0.0003,30]
[313630419,1707498450717,-2015.0,0.0003,30]
[313630420,1707498450736,-687.93566632,0.0003,4]
[313630421,1707498450755,-7598.15992891,0.0003,30]
[313630422,1707498453105,-19554.92078103,0.0003,30]
[313630423,1707498453126,-20000.0,0.0003,2]
[313630424,1707498453151,-1291.18671477,0.0003,4]
[313630425,1707498453171,-15480.33730978,0.0003,30]
[313630426,1707498453190,-2500.0,0.0003,7]
[313630427,1707498453209,-59254.07036567,0.0003,10]
[313630428,1707498453230,-5000.0,0.0003,20]
[313630429,1707498453249,-617.76308539,0.0003,3]
[313630430,1707498453269,-1858.13812231,0.0003,4]
[313630431,1707498453288,-1000.0,0.0003,2]
[313630432,1707498453308,-1000.0,0.0003,2]
[313630433,1707498453327,-664.910898,0.0003,2]
[313630434,1707498453348,-151.0,0.0003,2]
[313630435,1707498453368,-239.0,0.0003,2]
[313630436,1707498453389,-151.72159611,0.00030129,2]
[313630437,1707498453409,-198.33799352,0.0003013,2]
[313630438,1707498453431,-400.0,0.00030137,2]
[313630439,1707498453455,-150.90945433,0.00030153,4]
[313630440,1707498453475,-150.1,0.00030193,2]
[313630441,1707498453496,-155.0,0.00030224,2]
[313630442,1707498453518,-151.0,0.00030271,2]
[313630443,1707498453539,-1800.0,0.000305,10]
[313630444,1707498453562,-301.0,0.000305,15]
[313630445,1707498453583,-151.0,0.00030689,2]
[313630446,1707498453690,-150.90945433,0.00030768,2]
[313630447,1707498453713,-165.007778,0.00030875,2]
[313630448,1707498453733,-150.792634,0.00030875,2]
[313630449,1707498453753,-201.571213,0.00030875,2]
[313630450,1707498453773,-172.497189,0.00030875,2]
[313630451,1707498453796,-165.794661,0.00030875,2]
[313630452,1707498453816,-296.363545,0.00030875,2]
[313630453,1707498453836,-349.620985,0.00030875,2]
[313630454,1707498453855,-172.497191,0.00030875,2]
[313630455,1707498453875,-165.794662,0.00030875,2]
[313630456,1707498453896,-2000.0,0.00030964,2]
[313630457,1707498453917,-622.51273202,0.0003097,2]
[313630458,1707498453937,-500.0,0.00030999,2]
[313630459,1707498453958,-500.0,0.00030999,2]
[313630460,1707498453979,-333.72603158,0.00030999,2]
[313630461,1707498453999,-500.0,0.00030999,2]
[313630462,1707498454032,-328.90002979,0.00030999,2]
[313630463,1707498454052,-452.00471264,0.00030999,2]
[313630464,1707498454072,-500.0,0.00030999,2]
[313630465,1707498454093,-500.0,0.00030999,2]
[313630466,1707498454113,-500.0,0.00030999,2]
[313630467,1707498454136,-500.0,0.00030999,2]
[313630468,1707498454156,-233.75198447,0.00030999,2]
[313630469,1707498454176,-203.03124901,0.00030999,2]
[313630470,1707498454196,-500.0,0.00030999,2]
[313630471,1707498454216,-626.87404625,0.00030999,2]
[313630472,1707498454236,-500.0,0.00030999,2]
[313630473,1707498454256,-500.0,0.00030999,2]
[313630474,1707498454277,-500.0,0.00030999,2]
[313630475,1707498454296,-500.0,0.00030999,2]
[313630476,1707498454316,-500.0,0.00030999,2]
[313630477,1707498454337,-500.0,0.00030999,2]
[313630478,1707498454356,-500.0,0.00030999,2]
[313630479,1707498454378,-500.0,0.00030999,2]
[313630480,1707498454397,-500.0,0.00030999,2]
[313630481,1707498454417,-500.0,0.00030999,2]
[313630482,1707498454439,-500.0,0.00030999,2]
[313630483,1707498454458,-500.0,0.00030999,2]
[313630484,1707498454477,-500.0,0.00030999,2]
[313630485,1707498454498,-225.13178897,0.00030999,2]
[313630486,1707498454520,-172.38699578,0.00030999,2]
[313630487,1707498454540,-500.0,0.00030999,2]
[313630488,1707498454561,-500.0,0.00030999,2]
[313630489,1707498454581,-187.95316298,0.00030999,2]
[313630490,1707498454602,-500.0,0.00030999,2]
[313630491,1707498454622,-500.0,0.00030999,2]
[313630492,1707498454643,-500.0,0.00030999,2]
[313630493,1707498454664,-166.40329884,0.00030999,2]
[313630494,1707498454685,-500.0,0.00030999,2]
[313630495,1707498454704,-500.0,0.00030999,2]
[313630496,1707498454725,-340.08887697,0.00030999,2]
[313630497,1707498454744,-500.0,0.00030999,2]
[313630498,1707498454764,-500.0,0.00030999,2]
[313630499,1707498454784,-500.0,0.00030999,2]
[313630500,1707498454803,-250.0,0.00030999,2]
[313630501,1707498454823,-500.0,0.00030999,2]
[313630502,1707498454843,-500.0,0.00030999,2]
[313630503,1707498454867,-500.0,0.00030999,2]
[313630504,1707498454887,-500.0,0.00030999,2]
[313630505,1707498454907,-234.77866719,0.00030999,10]
[313630506,1707498454928,-251.31822746,0.00031,3]
[313630507,1707498454948,-2420.0,0.00031,7]
[313630508,1707498454968,-1000.0,0.00031,31]
[313630509,1707498454988,-155.42279768,0.00031,4]
[313630510,1707498455008,-224118.08910058,0.00031,4]
[313630511,1707498455037,-86796.54740478,0.00031,4]
[313630512,1707498455057,-2622.94304326,0.00031,2]
[313630513,1707498455077,-2622.94304326,0.00031,2]
[313630514,1707498455097,-2622.94304326,0.00031,2]
[313630515,1707498455117,-2622.94304326,0.00031,2]
[313630516,1707498455139,-2622.94304326,0.00031,2]
[313630517,1707498455159,-2622.94304326,0.00031,2]
[313630518,1707498455179,-2622.94304326,0.00031,2]
[313630519,1707498455198,-2622.94304326,0.00031,2]
[313630520,1707498455218,-2622.94304326,0.00031,2]
[313630521,1707498455237,-2622.94304326,0.00031,2]
[313630522,1707498455258,-1331.40855912,0.00031,7]
[313630523,1707498455279,-151.0,0.00031107,2]
[313630524,1707498455298,-150.0,0.00031129,2]
[313630525,1707498455318,-201.571213,0.00031261,2]
[313630526,1707498455339,-296.363545,0.00031261,2]
[313630527,1707498455360,-349.620985,0.00031261,2]
[313630528,1707498455380,-150.792634,0.0003139,2]
[313630529,1707498455400,-2500.0,0.000315,10]
[313630530,1707498455421,-151.0,0.00031524,2]
[313630531,1707498455441,-155.0,0.00031594,2]
[313630532,1707498455461,-201.571213,0.00031647,2]
[313630533,1707498455482,-296.363545,0.00031647,2]
[313630534,1707498455503,-349.620985,0.00031647,2]
[313630535,1707498455525,-100976.01987775,0.00031888,30]
[313630536,1707498455549,-21141.89197977,0.000319,3]
[313630537,1707498455570,-150.792634,0.00031904,2]
[313630538,1707498455677,-5000.0,0.00031912,2]
[313630539,1707498455698,-151.0,0.00031942,2]
[313630540,1707498455720,-714.0,0.0003197,30]
[313630541,1707498455739,-300.87,0.0003197,30]
[313630542,1707498455760,-546.0,0.0003197,30]
[313630543,1707498455779,-150.5,0.0003197,30]
[313630544,1707498455799,-150.5,0.0003197,30]
[313630545,1707498455819,-714.0,0.0003198,30]
[313630546,1707498455840,-150.5,0.0003198,30]
[313630547,1707498455860,-546.0,0.0003198,30]
[313630548,1707498455885,-150.5,0.0003198,30]
[313630549,1707498455905,-150.5,0.0003198,30]
[313630550,1707498455925,-714.0,0.0003199,30]
[313630551,1707498455945,-188.0,0.0003199,30]
[313630552,1707498455965,-150.5,0.0003199,30]
[313630553,1707498455985,-546.0,0.0003199,30]
[313630554,1707498456005,-150.5,0.0003199,30]
[313630555,1707498456025,-150.5,0.0003199,30]
[313630556,1707498456044,-152074.37510198,0.00032,15]
[313630601,1707498622363,5000.0,0.0003,120]
[313630602,1707498631067,5000.0,0.0003,120]
[313630649,1707498632394,-1366.90854697,0.00023433,2]
[313630651,1707498632403,-1667.71924504,0.00025097,2]
[313630653,1707498632412,-1769.17738179,0.00025197,2]
[313630654,1707498632422,-1808.57047999,0.0002658,4]
[313630656,1707498632431,-280.57621177,0.00027996,2]
[313630658,1707498632440,-335.67869431,0.00027997,2]
[313630660,1707498632449,-212.6780741,0.00027997,2]
[313630661,1707498632458,-220.5577675,0.00028,7]
[313630662,1707498632467,-154.92253873,0.00028,2]
[313630664,1707498632476,-1716.81726779,0.00028997,2]
[313630665,1707498632486,-1897.2990319,0.00028997,2]
[313630666,1707498632496,-741.66958363,0.00028998,2]
[313630668,1707498632504,-183.38489793,0.00029398,10]
[313630670,1707498632513,-200.0,0.00029399,15]
[313630671,1707498632522,-154.92253873,0.00029498,7]
[313630672,1707498632532,-830.67297326,0.00029498,2]
[313630673,1707498632541,-37971.69226161,0.000295,30]
[313630674,1707498632550,-181.26577494,0.00029998,2]
[313630675,1707498632563,-349.85911672,0.0003,4]
[313630676,1707498632573,-1734.79980871,0.0003,4]
[313630677,1707498632582,-2987.04009347,0.0003,4]
[313630678,1707498632592,-617.76308539,0.0003,3]
[313630679,1707498632602,-504.17896361,0.0003,14]
[313630680,1707498632612,-154.92253873,0.0003,4]
[313630681,1707498632622,-3343.30212067,0.0003,2]
[313630682,1707498632632,-1858.13812231,0.0003,4]
[313630683,1707498632641,-219.0,0.0003,2]
[313630684,1707498632651,-225.3151604,0.0003189,3]
[313630685,1707498632664,-3028.2948396,0.0003189,3]
[313630686,1707498632673,-2711.35,0.0003189,3]
[313630687,1707498632683,-2259.45,0.0003189,3]
[313630688,1707498632692,-21141.89197977,0.000319,3]
[313630689,1707498632701,-266.48230919,0.00031999,7]
[313630690,1707498632712,-500.0,0.00031999,7]
[313630691,1707498632721,-230.23002085,0.00031999,7]
[313630692,1707498632732,-363.62638913,0.00031999,7]
[313630693,1707498632741,-492.12187431,0.00031999,7]
[313630694,1707498632750,-500.0,0.00031999,7]
[313630695,1707498632760,-500.0,0.00031999,7]
[313630696,1707498632770,-500.0,0.00031999,7]
[313630697,1707498632780,-233.60822211,0.00031999,7]
[313630698,1707498632790,-500.0,0.00031999,7]
[313630699,1707498632799,-500.0,0.00031999,7]
[313630700,1707498632808,-650.0,0.00031999,7]
[313630701,1707498632818,-500.0,0.00031999,7]
[313630702,1707498632827,-500.0,0.00031999,7]
[313630703,1707498632836,-500.0,0.00031999,7]
[313630704,1707498632845,-500.0,0.00031999,7]
[313630705,1707498632855,-238.81183238,0.00031999,7]
[313630706,1707498632865,-500.0,0.00031999,7]
[313630707,1707498632875,-500.0,0.00031999,7]
[313630708,1707498632885,-500.0,0.00031999,7]
[313630709,1707498632894,-500.0,0.00031999,7]
[313630710,1707498632904,-500.0,0.00031999,7]
[313630711,1707498632913,-295.67089705,0.00031999,7]
[313630712,1707498632922,-500.0,0.00031999,7]
[313630713,1707498632931,-500.0,0.00031999,7]
[313630714,1707498632940,-500.0,0.00031999,7]
[313630715,1707498632952,-577.23168338,0.00031999,7]
[313630716,1707498632963,-607.59225228,0.00031999,7]
[313630717,1707498632972,-450.0,0.00031999,7]
[313630718,1707498632982,-500.0,0.00031999,7]
[313630719,1707498632993,-500.0,0.00031999,7]
[313630720,1707498633002,-538.06221388,0.00031999,7]
[313630721,1707498633011,-251.31822746,0.00032,3]
[313630722,1707498633021,-14550.79002143,0.00032,15]
[313630723,1707498633031,-206.60670747,0.00032,4]
[313630724,1707498633040,-172.53618551,0.00032,4]
[313630725,1707498633050,-262.18082752,0.00032,4]
[313630726,1707498633060,-310.01395126,0.00032,4]
[313630727,1707498633070,-34245.79745542,0.00032,15]
[313630743,1707498640446,-154.92253873,0.00023432,4]
[313630745,1707498640456,-335.67869431,0.00026579,2]
[313630747,1707498640465,-1361.35996089,0.00031879,5]
[313630749,1707498640474,-6859.37721755,0.00032,15]
[313630814,1707498641137,-14623.59252776,0.00032,15]
[313630815,1707498641149,-93944.14599787,0.00032,15]
[313630816,1707498641159,-2500.0,0.00032,10]
[313630817,1707498641169,-67743.22034482,0.00032,10]
[313630818,1707498641178,-22420.0,0.00032,14]
[313630819,1707498641188,-10241.37209592,0.00032,4]
[313630820,1707498641198,-188749.44565093,0.00032,15]
[313630821,1707498641207,-564.37059067,0.00032,7]
[313630822,1707498641216,-45977.03263234,0.00032,15]
[313630823,1707498641228,-2208.52051075,0.00032,15]
[313630824,1707498641240,-6458.44732956,0.00032,15]
[313630825,1707498641331,-50359.75405416,0.00032,15]
[313630826,1707498641347,-16573.77765014,0.00032,15]
[313630827,1707498641356,-387703.46245986,0.00032,15]
[313630831,1707498641604,-201.0,0.00032,2]
[313630832,1707498641614,-8511.2034784,0.00032,15]
[313630833,1707498641623,-573.0,0.00032,7]
[313630834,1707498641633,-69731.8961416,0.00032,15]
[313630841,1707498643411,-602.61772616,0.00032,15]
[313630842,1707498643422,-268.1535,0.00032,15]
[313630848,1707498646420,-3343.30212067,0.0003,2]
[313630849,1707498646430,-617.76308539,0.0003,3]
[313630850,1707498646439,-1882.88,0.0003199,3]
[313630851,1707498646449,-2549.15416954,0.00031999,4]
[313630852,1707498646458,-235.06074137,0.00031999,4]
[313630853,1707498646467,-1858.13812231,0.00031999,4]
[313630854,1707498646477,-847.57362083,0.00031999,4]
[313630855,1707498646487,-2306.66427535,0.00031999,2]
[313630856,1707498646496,-376.97379701,0.00031999,4]
[313630857,1707498646505,-57782.73935424,0.00032,15]
[313630858,1707498646514,-1000.0,0.00032,32]
[313630859,1707498646522,-4945.6612205,0.00032,30]
[313630860,1707498646532,-381.87009176,0.00032,30]
[313630861,1707498646541,-106567.39940373,0.00032,15]
[313630862,1707498646550,-101704.6354173,0.00032,15]
[313630863,1707498646562,-16726.30331,0.00032,15]
[313631000,1707499832508,-154.92253873,0.00023398,4]
[313631002,1707499832518,-454.47444014,0.00023399,2]
[313631004,1707499832527,-212.6780741,0.00023432,2]
[313631006,1707499832536,-1290.2297369,0.00023433,2]
[313631012,1707499832577,-372.63707389,0.00023433,2]
[313631084,1707499838663,-802.44213703,0.00023433,2]
[313631085,1707499838678,-4021.40829717,0.00023433,2]
[313631086,1707499838689,-1459.51138012,0.00023433,2]
[313631087,1707499838716,-430.15486444,0.00023433,2]
[313631088,1707499838738,-98.45688689,0.00023433,2]
[313631089,1707499838754,-200.0,0.00024604,7]
[313631090,1707499838770,-280.57621177,0.00026,2]
[313631091,1707499838785,-2484.6773793,0.00026657,2]
[313631092,1707499838798,-280.0,0.00027064,15]
[313631093,1707499838812,-634.64666133,0.00028,2]
[313631094,1707499838832,-1262.65237057,0.00028,2]
[313631095,1707499838850,-1716.81726779,0.00028998,2]
[313631096,1707499838865,-207.55491709,0.00029,7]
[313631097,1707499838879,-150.0,0.00029,2]
[313631098,1707499838893,-232.26026665,0.00029,7]
[313631099,1707499838905,-183.38489793,0.00029314,10]
[313631100,1707499838916,-199.1089141,0.00029315,2]
[313631101,1707499838926,-274.33533339,0.00029499,2]
[313631102,1707499838944,-662.06466661,0.00029499,2]
[313631103,1707499838957,-13753.32623479,0.000295,30]
[313631104,1707499838974,-6851.33659809,0.000295,30]
[313631105,1707499838988,-391.0,0.0002977,15]
[313631106,1707499839000,-500.0,0.00029852,2]
[313631107,1707499839011,-500.0,0.00029999,2]
[313631108,1707499839022,-3343.30212067,0.0003,2]
[313631109,1707499839033,-617.76308539,0.0003,3]
[313631110,1707499839050,-246.0,0.0003,2]
[313631111,1707499839065,-1858.13812231,0.00030461,4]
[313631112,1707499839079,-2090.92806543,0.00030461,4]
[313631113,1707499839092,-504.17896361,0.00030462,14]
[313631114,1707499839104,-244.90138171,0.00030462,4]
[313631115,1707499839116,-150.1,0.00030463,2]
[313631116,1707499839128,-741.04458177,0.00031998,4]
[313631117,1707499839139,-200.91613631,0.00031998,4]
[313631118,1707499839152,-166.60971655,0.00031998,7]
[313631119,1707499839164,-336.85928874,0.00031998,4]
[313631120,1707499839176,-936.4,0.00031999,2]
[313631121,1707499839187,-936.4,0.00031999,2]
[313631122,1707499839198,-936.4,0.00031999,2]
[313631123,1707499839209,-936.4,0.00031999,2]
[313631124,1707499839220,-936.4,0.00031999,2]
[313631125,1707499839232,-936.4,0.00031999,2]
[313631126,1707499839245,-936.4,0.00031999,2]
[313631127,1707499839256,-936.4,0.00031999,2]
[313631128,1707499839267,-936.4,0.00031999,2]
[313631129,1707499839278,-936.4,0.00031999,2]
[313631130,1707499839290,-936.4,0.00031999,2]
[313631131,1707499839302,-936.4,0.00031999,2]
[313631132,1707499839315,-936.4,0.00031999,2]
[313631133,1707499839326,-936.4,0.00031999,2]
[313631134,1707499839337,-936.4,0.00031999,2]
[313631135,1707499839348,-936.4,0.00031999,2]
[313631136,1707499839360,-936.4,0.00031999,2]
[313631137,1707499839371,-936.4,0.00031999,2]
[313631138,1707499839382,-936.4,0.00031999,2]
[313631139,1707499839394,-936.4,0.00031999,2]
[313631140,1707499839406,-500.0,0.00031999,2]
[313631141,1707499839418,-936.4,0.00031999,2]
[313631142,1707499839429,-500.0,0.00031999,2]
[313631143,1707499839440,-936.4,0.00031999,2]
[313631144,1707499839451,-936.46204895,0.00031999,2]
[313631145,1707499839462,-51633.60330254,0.00032,15]
[313631146,1707499839473,-1000.0,0.00032,32]
[313631147,1707499839484,-301.0,0.00032,16]
[313631148,1707499839496,-2809.98599433,0.00032,4]
[313631149,1707499839507,-196.02779386,0.00032,2]
[313631150,1707499839518,-300.0,0.00032,4]
[313631151,1707499839529,-1029.57664102,0.00032,2]
[313631152,1707499839657,-2461.65531605,0.00032,2]
[313631153,1707499839671,-1200.0,0.00032,4]
[313631154,1707499839681,-2007.36725295,0.00032,14]
[313631155,1707499839690,-500.0,0.00032,2]
[313631156,1707499839699,-684.60664777,0.00032,5]
[313631157,1707499839709,-862.46804398,0.00032,7]
[313631158,1707499839718,-1330.0,0.00032,7]
[313631159,1707499839727,-618.15853774,0.00032,7]
[313631160,1707499839736,-201.571213,0.00032033,2]
[313631161,1707499839746,-296.363545,0.00032033,2]
[313631162,1707499839755,-80.75392989,0.00032033,2]
[313631175,1707499844747,-268.86705511,0.00032033,2]
[313631176,1707499844756,-150.0,0.00032129,2]
[313631177,1707499844766,-201.571213,0.00032419,2]
[313631178,1707499844775,-296.363545,0.00032419,2]
[313631179,1707499844784,-349.620985,0.00032419,2]
[313631180,1707499844793,-150.792634,0.00032419,2]
[313631181,1707499844803,-186.176561,0.00032475,2]
[313631182,1707499844813,-187.046954,0.00032475,2]
[313631183,1707499844822,-185.261089,0.00032475,2]
[313631184,1707499844831,-186.043578,0.00032475,2]
[313631185,1707499844840,-172.497189,0.00032475,2]
[313631186,1707499844850,-1216.91079123,0.000325,15]
[313631200,1707499846561,-285.74789226,0.00032032,4]
[313631201,1707499846571,-1877.64212774,0.000325,15]
[313631202,1707499846617,-462.09347315,0.00029499,2]
[313631322,1707501031666,-154.92253873,0.00023408,4]
[313631324,1707501031676,-212.6780741,0.00023409,2]
[313631326,1707501031685,-1724.49938717,0.00023433,2]
[313631328,1707501031697,-220.43599338,0.00023433,2]